bitfinex/quotes_ETHUSD_20250925
["timestamp","ask_amount","ask_price","bid_price","bid_amount"]
[1758811576873,1e-08,4026.1,4026.0,2.48385494]
[1758811577194,1e-08,4026.1,4026.0,11.89685494]
[1758811577343,1e-08,4026.1,4026.0,12.60265494]
[1758811577544,1e-08,4026.1,4026.0,14.0581252]
[1758811577858,1e-08,4026.1,4026.0,14.8501252]
[1758811578389,1e-08,4026.6,4026.5,3.2755465]
[1758811578582,1e-08,4026.6,4026.5,7.6175465]
[1758811578794,1e-08,4026.6,4026.5,11.3233465]
[1758811578994,1e-08,4026.6,4026.5,8.08438262]
[1758811579283,1e-08,4026.6,4026.5,13.34362435]
[1758811579654,1e-08,4026.6,4026.5,11.02812435]
[1758811579856,1e-08,4026.6,4026.5,12.99858262]
[1758811580172,1e-08,4026.6,4026.5,13.24408262]
[1758811580847,1e-08,4026.6,4026.5,13.70438262]
[1758811581978,1e-08,4026.6,4026.5,13.24408262]
[1758811582681,1e-08,4026.6,4026.5,6.83208262]
[1758811582844,1e-08,4026.6,4026.5,2.4835465]
[1758811583050,1e-08,4026.6,4026.5,6.41]
[1758811583051,0.66890001,4026.6,4026.5,6.41]
[1758811583244,1e-08,4026.6,4026.5,8.8935465]
[1758811584397,1e-08,4026.6,4026.5,2.4835465]
[1758811584708,1e-08,4026.6,4026.5,8.8925465]
[1758811585405,0.42810001,4026.6,4026.5,8.8925465]
[1758811585807,0.42810001,4026.6,4026.0,0.49347519]
[1758811585808,0.42810001,4026.6,4025.6,2.4840985]
[1758811586024,0.42810001,4026.6,4025.8,2.48393553]
[1758811586025,0.66890001,4026.6,4025.8,2.48393553]
[1758811586323,1e-08,4026.6,4026.5,2.4835465]
[1758811586523,1e-08,4026.6,4026.5,8.8925465]
[1758811587127,0.42810001,4026.6,4026.5,0.124]
[1758811587418,0.66890001,4026.6,4026.5,4.463]
[1758811587772,0.66890001,4026.6,4025.3,0.2455]
[1758811587986,0.66890001,4026.6,4026.1,0.124]
[1758811588211,0.2408,4026.5,4026.2,3.689]
[1758811588435,0.6689,4026.4,4026.2,3.689]
[1758811588708,0.2408,4026.4,4026.1,0.124]
[1758811589015,0.2408,4026.3,4026.1,0.124]
[1758811589212,0.2408,4026.3,4026.2,4.338]
[1758811589812,0.6689,4026.3,4026.2,4.338]
[1758811590016,0.6689,4026.3,4026.0,0.002]
[1758811590219,0.124,4026.4,4026.1,4.338]
[1758811590508,1e-08,4026.6,4026.2,2.50852032]
[1758811590708,0.4281,4026.5,4026.1,4.462]
[1758811590932,0.4281,4026.5,4026.2,2.48369001]
[1758811591223,0.24080001,4026.6,4026.2,1.18865347]
[1758811591224,1e-08,4026.6,4026.2,1.18865347]
[1758811591508,1e-08,4026.6,4026.5,2.4835465]
[1758811591673,1e-08,4026.6,4026.5,6.84538196]
[1758811591877,1e-08,4026.6,4026.5,7.0660465]
[1758811592289,1e-08,4026.6,4026.5,4.337]
[1758811592290,0.42810001,4026.6,4026.5,4.337]
[1758811592891,0.42810001,4026.6,4026.5,6.8205465]
[1758811593418,0.42810001,4026.6,4026.0,0.002]
[1758811593615,0.23111522,4026.5,4026.1,6.407]
[1758811593912,1e-08,4026.6,4026.1,6.407]
[1758811594117,0.4281,4026.5,4026.1,6.407]
[1758811594318,0.23142703,4026.4,4026.1,6.407]
[1758811594524,0.4281,4026.5,4026.4,2.48360818]
[1758811594726,1e-08,4026.6,4026.4,6.81960603]
[1758811594929,0.65952698,4026.5,4026.4,6.81960818]
[1758811596325,0.23142698,4026.5,4026.4,6.81960818]
[1758811596527,0.65952698,4026.5,4026.4,4.336]
[1758811596720,0.65952698,4026.5,4026.4,6.81960818]
[1758811597707,0.65952698,4026.5,4026.4,4.336]
[1758811597909,0.65952698,4026.5,4026.4,6.81960818]
[1758811598098,0.65952698,4026.5,4026.4,4.336]
[1758811598294,0.90032698,4026.5,4026.4,4.336]
[1758811598498,0.65952698,4026.5,4026.4,6.81960818]
[1758811598727,0.65952698,4026.5,4026.4,2.48360818]
[1758811599030,0.65952698,4026.5,4026.4,4.335]
[1758811599202,0.65872698,4026.5,4026.4,4.335]
[1758811599406,0.89952698,4026.5,4026.0,0.002]
[1758811599606,0.6689,4026.5,4026.1,0.346]
[1758811599829,0.55604428,4026.4,4026.0,0.002]
[1758811600162,0.2408,4026.4,4026.2,4.335]
[1758811600362,0.4281,4026.3,4026.2,4.335]
[1758811600513,0.6689,4026.3,4026.2,4.335]
[1758811601017,0.6689,4026.3,4026.0,0.002]
[1758811601217,0.2315,4026.2,4026.0,0.002]
[1758811601455,0.3267216,4026.1,4026.0,1.045]
[1758811601656,0.9972216,4026.1,4026.0,0.002]
[1758811601827,2.48403445,4025.8,4025.5,0.002]
[1758811602015,2.60810174,4025.6,4025.5,0.002]
[1758811602217,32.29534874,4025.6,4025.5,0.002]
[1758811602421,2.48430512,4025.3,4025.1,0.002]
[1758811602618,2.60829338,4025.3,4025.1,0.002]
[1758811602955,0.6705,4025.2,4025.1,0.002]
[1758811604443,3.1548486,4025.2,4025.1,0.002]
[1758811604621,0.6705,4025.2,4025.1,0.002]
[1758811605324,3.1548486,4025.2,4025.1,0.002]
[1758811605566,0.6705,4025.2,4025.1,0.002]
[1758811605732,0.439,4025.2,4025.1,0.002]
[1758811606131,0.6705,4025.2,4025.1,0.002]
[1758811606858,0.439,4025.2,4025.1,0.002]
[1758811607022,0.6705,4025.2,4025.1,0.002]
[1758811607630,0.439,4025.2,4025.1,0.002]
[1758811608145,0.6705,4025.5,4025.1,0.002]
[1758811608547,5.738243,4025.4,4025.1,0.002]
[1758811608731,1.28439666,4025.4,4025.1,0.002]
[1758811608931,0.439,4025.3,4025.1,0.002]
[1758811609134,0.6705,4025.3,4025.1,0.002]
[1758811609669,2.48405218,4025.7,4025.1,0.002]
[1758811609871,0.439,4025.2,4025.1,0.002]
[1758811610740,7.75340983,4025.2,4025.1,0.002]
[1758811611078,10.12099883,4025.2,4025.1,0.002]
[1758811611262,10.35284508,4025.2,4025.1,0.002]
[1758811611770,5.35123948,4025.2,4025.1,0.002]
[1758811612073,1.21781948,4025.2,4025.1,0.002]
[1758811612462,3.70216808,4025.2,4025.1,0.002]
[1758811612664,1.21781948,4025.2,4025.1,0.002]
[1758811613170,3.70216808,4025.2,4025.1,0.002]
[1758811613477,0.23184625,4025.2,4025.1,2.71351032]
[1758811613645,1e-08,4025.2,4025.1,6.04235442]
[1758811613842,0.439,4027.0,4025.2,2.4843486]
[1758811614053,2.48343752,4026.7,4025.9,2.48390534]
[1758811614256,0.81705955,4026.5,4026.0,6.81483306]
[1758811614437,5.57271901,4026.6,4026.0,6.81483306]
[1758811614438,1e-08,4026.6,4026.1,0.2271]
[1758811614643,0.439,4026.5,4026.0,4.331]
[1758811614861,0.439,4026.4,4025.9,4.331]
[1758811615061,0.6705,4026.3,4025.9,4.331]
[1758811615361,0.439,4026.3,4025.9,4.331]
[1758811616064,0.439,4026.3,4025.9,6.81490242]
[1758811616258,2.87305757,4026.5,4025.9,4.331]
[1758811616469,0.99219494,4026.5,4026.0,2.48380683]
[1758811616681,1.43119494,4026.5,4025.9,4.331]
[1758811616992,0.82850214,4026.5,4025.9,4.331]
[1758811617195,0.82850214,4026.5,4026.0,2.48384949]
[1758811617494,0.82850214,4026.5,4026.0,2.48385494]
[1758811617878,0.82850214,4026.5,4025.9,6.81490112]
[1758811618191,0.124,4026.3,4025.9,4.331]
[1758811618574,0.124,4026.3,4025.9,4.5581]
[1758811619289,0.124,4026.3,4026.0,2.48380772]
[1758811619462,0.124,4026.3,4026.0,2.71090772]
[1758811619790,0.124,4026.3,4026.0,0.2271]
[1758811619997,0.124,4026.3,4026.0,2.71094178]
[1758811620376,0.124,4026.3,4026.1,2.48378078]
[1758811620696,0.124,4026.3,4026.1,0.2271]
[1758811620887,0.124,4026.3,4025.9,4.33]
[1758811621196,0.124,4026.3,4025.9,6.81390497]
[1758811621496,0.124,4026.3,4026.0,4.329]
[1758811621697,0.124,4026.3,4026.0,4.5561]
[1758811621900,0.38950214,4026.5,4026.4,2.48360818]
[1758811622100,1e-08,4026.6,4026.5,2.4835465]
[1758811622302,1e-08,4026.6,4026.5,3.1526465]
[1758811622693,1e-08,4026.6,4026.5,3.17748196]
[1758811622906,1e-08,4026.6,4026.5,4.18889097]
[1758811624110,1e-08,4026.6,4026.5,1.70534447]
[1758811624311,1e-08,4026.6,4026.5,7.0396465]
[1758811624611,0.00020001,4026.9,4026.6,2.48347625]
[1758811625180,0.00020001,4026.9,4026.7,2.48342261]
[1758811625485,0.00020001,4026.9,4026.6,2.48346841]
[1758811626090,0.00020001,4026.9,4026.5,4.329]
[1758811626292,0.00020001,4026.9,4026.5,4.5587]
[1758811626486,0.4295,4026.8,4026.5,4.329]
[1758811626689,0.4295,4026.8,4026.5,6.8124885]
[1758811626892,0.00020001,4026.9,4026.5,6.8124885]
[1758811627177,0.00020001,4026.9,4026.6,0.6779]
[1758811627405,0.00020001,4026.9,4026.8,2.48336147]
[1758811627714,0.001,4027.4,4027.1,2.48312985]
[1758811628011,0.001,4027.4,4027.3,2.48305316]
[1758811628474,0.001,4027.4,4027.3,3.16095316]
[1758811628679,0.001,4027.4,4027.3,4.36506146]
[1758811629282,0.001,4027.4,4027.3,4.38989199]
[1758811630075,0.001,4027.4,4027.3,5.7608083]
[1758811630279,0.001,4027.4,4027.3,9.10975316]
[1758811631211,0.001,4027.4,4027.3,9.54445316]
[1758811631784,0.001,4027.4,4027.3,9.10875316]
[1758811633010,0.001,4027.4,4027.3,2.71275316]
[1758811633195,0.001,4027.4,4027.3,9.10675316]
[1758811633391,0.001,4027.4,4027.3,10.74391457]
[1758811634113,0.001,4027.4,4027.3,10.30921457]
[1758811635594,0.001,4027.4,4027.3,10.74391457]
[1758811637414,0.001,4027.4,4026.8,2.4833218]
[1758811637415,0.699,4027.4,4027.2,4.324]
[1758811637614,0.2298,4027.3,4027.2,4.324]
[1758811637817,0.698,4027.3,4027.2,4.324]
[1758811637985,0.4682,4027.3,4027.2,4.324]
[1758811638582,2.48322604,4027.1,4026.7,0.124]
[1758811638789,1.0161226,4027.0,4026.2,0.2358]
[1758811639002,0.698,4027.0,4026.4,2.48356285]
[1758811639399,0.698,4027.0,4025.9,2.48391663]
[1758811639400,7.4748628,4026.9,4025.9,2.48391663]
[1758811639694,0.698,4026.8,4026.2,2.48372108]
[1758811639888,0.698,4026.8,4026.3,4.323]
[1758811640086,2.4832998,4026.9,4026.3,4.323]
[1758811640319,0.698,4026.8,4025.8,2.71974585]
[1758811640520,2.71316744,4026.8,4026.0,2.4838048]
[1758811640711,2.71316744,4026.8,4026.5,0.002]
[1758811640712,0.4682,4026.7,4026.5,0.002]
[1758811641218,0.4682,4026.6,4026.5,0.002]
[1758811641525,0.698,4026.6,4026.5,0.002]
[1758811642229,24.35243641,4026.6,4026.5,0.002]
[1758811642395,6.73144941,4026.6,4026.5,0.002]
[1758811642594,34.06316441,4026.6,4026.5,0.002]
[1758811644007,34.06333271,4026.6,4026.5,0.002]
[1758811644428,27.13801571,4026.6,4026.5,0.002]
[1758811644611,22.48554071,4026.6,4026.5,0.002]
[1758811645225,21.06220071,4026.6,4026.5,0.002]
[1758811646229,34.06333271,4026.6,4026.5,0.002]
[1758811646430,10.77236889,4026.6,4026.5,0.002]
[1758811646629,10.77236889,4026.6,4025.2,2.48429]
[1758811646630,3.2763486,4025.2,4024.2,0.002]
[1758811646808,3.27665724,4024.7,4024.2,0.002]
[1758811647010,2.4849042,4024.3,4024.2,0.002]
[1758811647206,3.94520705,4024.3,4024.2,0.002]
[1758811647417,32.54164695,4024.3,4024.2,0.002]
[1758811647714,19.44949597,4024.3,4024.2,0.002]
[1758811648055,14.23141721,4024.3,4024.2,0.002]
[1758811648578,33.01679231,4024.3,4024.2,0.002]
[1758811648910,33.24659231,4024.3,4024.2,0.002]
[1758811649541,36.17651731,4024.3,4024.2,0.002]
[1758811649953,36.17571731,4024.3,4024.2,0.002]
[1758811650447,36.17671731,4024.3,4024.2,0.002]
[1758811650849,35.47871731,4024.3,4024.2,0.002]
[1758811651349,36.73891731,4024.3,4024.2,0.002]
[1758811651541,2.48515122,4023.9,4023.4,0.002]
[1758811651738,10.35828411,4023.9,4023.4,0.002]
[1758811652050,5.60921298,4023.8,4023.4,0.002]
[1758811652246,2.48539828,4023.5,4023.4,0.002]
[1758811652457,24.77819328,4023.5,4023.4,0.002]
[1758811652634,25.4769155,4023.5,4023.4,0.002]
[1758811652956,27.23479566,4023.5,4023.4,0.002]
[1758811653354,29.60171244,4023.5,4023.4,0.002]
[1758811653928,29.17857533,4023.5,4023.4,0.002]
[1758811654276,3.0,4024.0,4023.4,0.6725]
[1758811654424,0.124,4023.6,4023.5,0.2358]
[1758811655855,2.60933651,4023.6,4023.4,0.002]
[1758811656104,2.60933652,4023.6,4023.4,0.002]
[1758811656381,20.92337528,4023.5,4023.4,0.002]
[1758811656672,26.67154091,4023.5,4023.4,0.002]
[1758811657148,27.10834267,4023.5,4023.4,0.002]
[1758811657357,37.49208067,4023.5,4023.4,0.002]
[1758811657956,6.71426181,4023.4,4023.3,0.002]
[1758811658160,39.76603516,4023.4,4023.3,0.002]
[1758811658468,40.46403516,4023.4,4023.3,0.002]
[1758811658823,24.40905011,4023.4,4023.3,0.002]
[1758811659028,31.21751016,4023.4,4023.3,0.002]
[1758811659225,28.73205011,4023.4,4023.3,0.002]
[1758811659427,29.04186016,4023.4,4023.3,0.002]
[1758811660469,30.87253016,4023.4,4023.3,0.002]
[1758811660673,25.84770916,4023.4,4023.3,0.002]
[1758811661273,23.36224911,4023.4,4023.3,0.002]
[1758811661428,10.70421016,4023.4,4023.3,0.002]
[1758811661936,6.38121016,4023.4,4023.3,0.002]
[1758811662271,0.23000338,4023.4,4023.3,0.2369]
[1758811662476,0.23000338,4023.4,4023.3,0.6772]
[1758811662680,0.4403,4024.5,4023.3,0.70205521]
[1758811662831,0.124,4024.6,4024.2,2.48495766]
[1758811663136,0.22971528,4025.3,4024.5,0.124]
[1758811663338,0.35371528,4025.2,4024.6,0.02484718]
[1758811663556,0.22971528,4025.1,4024.6,0.70004718]
[1758811663789,0.124,4025.8,4024.7,0.6752]
[1758811664096,0.22979287,4025.7,4025.1,0.124]
[1758811664295,0.124,4025.8,4025.2,3.15953372]
[1758811664597,0.22992938,4025.7,4025.3,2.71917689]
[1758811664796,0.22992081,4025.6,4025.4,0.6752]
[1758811664998,0.124,4025.8,4025.1,0.3589]
[1758811665197,0.124,4025.6,4025.1,0.2349]
[1758811665407,0.22993481,4025.5,4025.2,0.2349]
[1758811665605,0.22993481,4025.4,4025.2,0.2349]
[1758811665899,0.124,4025.6,4025.2,0.2349]
[1758811666113,0.2300973,4025.5,4024.9,0.124]
[1758811666291,0.124,4025.2,4024.7,0.2349]
[1758811666478,0.2300973,4025.1,4024.5,0.124]
[1758811666803,0.2300973,4025.0,4024.6,0.2349]
[1758811667003,0.124,4025.2,4024.7,0.6752]
[1758811667300,0.23029788,4025.1,4024.8,0.6752]
[1758811667505,0.23029788,4025.0,4024.9,0.6752]
[1758811667677,0.23029788,4025.0,4023.3,0.002]
[1758811667884,6.27746005,4023.4,4023.3,0.002]
[1758811668078,4.8989468,4023.4,4023.3,0.002]
[1758811668309,0.23066317,4023.4,4023.3,0.002]
[1758811668880,0.35466317,4023.4,4023.3,0.002]
[1758811670212,0.35466317,4023.4,4023.3,0.2369]
[1758811670392,0.35466317,4023.4,4023.3,0.002]
[1758811671288,12.91025517,4023.4,4023.3,0.002]
[1758811671615,7.20990974,4023.4,4023.3,0.002]
[1758811671811,6.74930974,4023.4,4023.3,0.002]
[1758811672508,16.09890374,4023.4,4023.3,0.002]
[1758811672709,16.71290374,4023.4,4023.3,0.002]
[1758811673014,17.17350374,4023.4,4023.3,0.002]
[1758811673200,2.48570718,4023.0,4022.9,0.002]
[1758811673402,2.71637035,4023.0,4022.9,0.002]
[1758811673713,17.15791935,4023.0,4022.9,0.002]
[1758811674014,2.45233017,4023.0,4022.9,0.002]
[1758811674380,0.23066317,4023.0,4022.9,0.002]
[1758811674586,5.14158435,4023.0,4022.9,0.002]
[1758811674787,21.56294935,4023.0,4022.9,0.002]
[1758811674991,23.03939987,4023.0,4022.9,0.002]
[1758811675322,23.03939987,4023.0,4021.6,0.2349]
[1758811675323,2.48515435,4022.6,4021.6,0.2349]
[1758811675624,10.06881752,4022.6,4021.4,0.124]
[1758811675787,3.0,4022.3,4020.8,0.6752]
[1758811675995,0.124,4021.4,4020.8,0.7992]
[1758811676184,0.23066317,4021.3,4020.8,0.7992]
[1758811676384,0.23066317,4021.2,4020.9,0.2349]
[1758811676592,0.124,4021.4,4021.0,0.2349]
[1758811676593,0.23066317,4021.1,4021.0,0.2349]
[1758811677321,0.23066317,4021.1,4020.8,0.5643]
[1758811677322,0.23066317,4021.1,4020.8,0.124]
[1758811677523,0.23066317,4021.0,4020.8,0.3589]
[1758811677714,0.23066317,4020.9,4020.8,0.3589]
[1758811678096,0.23066317,4020.9,4020.5,0.2349]
[1758811678421,0.23066317,4020.8,4020.5,1.30192]
[1758811678594,0.23066317,4020.7,4020.6,0.6752]
[1758811680017,0.23066317,4020.7,4020.6,3.16239096]
[1758811680390,0.23066317,4020.7,4020.6,3.18726286]
[1758811680626,0.23066317,4020.7,4020.6,3.28639096]
[1758811680796,0.23066317,4020.7,4020.6,4.121132]
[1758811682026,0.2441,4023.1,4020.8,3.0]
[1758811682213,0.23136135,4023.0,4022.0,2.48632485]
[1758811682393,0.23136135,4022.9,4022.1,4.60676263]
[1758811682598,0.23136135,4022.8,4022.1,4.55034815]
[1758811682827,0.23136135,4022.7,4022.1,4.57521078]
[1758811683028,0.23136135,4022.6,4022.2,2.48619947]
[1758811683348,0.23136135,4022.5,4022.3,0.2354]
[1758811683543,0.23136135,4022.4,4022.1,4.346]
[1758811683741,0.23136135,4022.3,4022.1,4.346]
[1758811683953,5.48575417,4023.0,4022.2,0.2354]
[1758811684247,7.71620708,4022.9,4022.2,0.2354]
[1758811684440,0.23131807,4022.8,4022.2,0.2354]
[1758811684741,3.0,4023.0,4022.2,0.2354]
[1758811684742,0.23131807,4022.7,4022.2,0.2354]
[1758811684904,0.23131807,4022.6,4022.1,4.343]
[1758811685106,0.23131807,4022.5,4022.1,4.343]
[1758811685409,0.23131807,4022.4,4022.1,4.343]
[1758811685609,8.17030407,4022.3,4021.2,0.2354]
[1758811685809,16.40189107,4022.2,4021.3,2.072]
[1758811685991,0.23131807,4022.1,4021.3,6.415]
[1758811686193,2.95658764,4022.0,4021.4,4.343]
[1758811686393,2.71775961,4021.9,4021.0,2.072]
[1758811686607,2.71775961,4021.9,4020.8,2.7224619]
[1758811686608,6.03447007,4021.8,4020.8,0.2354]
[1758811686831,2.48665296,4021.5,4020.8,0.2354]
[1758811687005,0.23131807,4021.4,4020.8,0.2354]
[1758811687206,0.23131807,4021.3,4020.7,4.341]
[1758811687423,0.23131807,4021.2,4021.1,2.48688169]
[1758811687622,0.23131807,4021.2,4021.1,3.78470628]
[1758811687822,0.23131807,4021.2,4021.1,3.75983747]
[1758811690256,2.48594127,4022.7,4021.1,3.75983747]
[1758811690257,2.48596273,4022.6,4021.6,2.48656624]
[1758811690554,0.23124938,4022.5,4021.7,6.414]
[1758811690729,0.23124938,4022.4,4022.0,2.48626556]
[1758811691057,0.23124938,4022.3,4021.7,6.414]
[1758811691354,0.23124938,4022.2,4021.7,6.414]
[1758811691532,0.23124938,4022.1,4021.7,6.414]
[1758811691720,0.23124938,4022.0,4021.9,2.48638703]
[1758811692122,0.23124938,4022.0,4021.9,7.0801509]
[1758811692323,0.23124938,4022.0,4021.9,9.05300335]
[1758811692559,0.23124938,4022.0,4021.9,6.56661632]
[1758811692759,0.23124938,4022.0,4021.9,6.53821966]
[1758811692962,0.23124938,4022.0,4021.9,6.07701966]
[1758811693134,0.23124938,4022.0,4021.9,4.66450334]
[1758811693329,0.23124938,4022.0,4021.9,4.43260334]
[1758811694360,0.23124938,4022.0,4021.9,0.3559]
[1758811694557,0.23124938,4022.0,4021.9,5.1501]
[1758811695463,0.124,4023.2,4021.9,5.1501]
[1758811695760,0.23175446,4023.1,4022.1,0.792]
[1758811695939,0.001,4022.9,4022.2,0.6931]
[1758811696131,0.23175446,4022.8,4022.3,5.0241]
[1758811696333,0.23175446,4022.7,4022.4,0.6931]
[1758811696532,0.001,4022.9,4022.7,0.124]
[1758811696834,0.001,4022.9,4022.8,6.403]
[1758811697034,0.23295415,4022.9,4022.8,6.6349]
[1758811697327,0.23295415,4022.9,4022.8,0.2319]
[1758811697558,0.23295415,4022.9,4022.8,6.6349]
[1758811697934,0.23295415,4022.9,4022.7,0.124]
[1758811698148,0.23195415,4022.8,4022.7,2.6572]
[1758811698347,0.23195415,4022.8,4022.7,3.1762]
[1758811698759,0.001,4022.9,4022.7,3.72572]
[1758811698963,0.001,4022.9,4022.8,0.6931]
[1758811700252,0.001,4022.9,4022.8,0.7179583]
[1758811700767,0.0002,4022.9,4022.8,0.7179583]
[1758811702136,0.0002,4022.9,4022.8,4.5099583]
[1758811702339,0.001,4023.4,4022.9,0.792]
[1758811702562,0.12658319,4025.0,4023.0,0.02485707]
[1758811702751,0.001,4025.0,4023.2,0.792]
[1758811702955,0.001,4025.0,4023.4,3.792]
[1758811703287,0.001,4025.0,4023.6,3.792]
[1758811703587,0.001,4025.0,4023.7,1.6672]
[1758811703883,0.001,4025.0,4023.9,3.792]
[1758811704266,0.001,4025.0,4024.1,0.792]
[1758811704653,0.001,4025.0,4024.2,0.2319]
[1758811705659,0.001,4025.0,4024.3,0.4612]
[1758811705863,0.2371,4025.0,4024.4,0.14851]
[1758811706068,0.4302,4024.9,4024.4,2.314]
[1758811706254,0.6663,4024.8,4024.4,2.314]
[1758811706779,0.001,4025.0,4024.4,2.314]
[1758811707574,0.001,4025.0,4024.5,0.0248478]
[1758811707751,0.001,4025.0,4024.4,2.314]
[1758811708172,0.001,4025.0,4024.5,0.0248478]
[1758811708475,0.001,4025.0,4024.4,2.314]
[1758811709276,0.001,4025.0,4024.5,0.0248478]
[1758811710771,0.2371,4025.0,4024.5,0.0248478]
[1758811711275,0.001,4025.0,4024.4,2.314]
[1758811711579,0.6663,4024.9,4024.4,2.314]
[1758811711778,0.2361,4024.9,4024.1,0.2319]
[1758811712075,0.4302,4024.8,4022.9,0.792]
[1758811712277,0.2361,4024.7,4024.1,0.124]
[1758811712439,0.2361,4024.7,4024.2,0.52]
[1758811712646,0.2361,4024.6,4024.2,0.52]
[1758811714072,0.001,4024.7,4024.2,0.52]
[1758811714380,0.001,4024.7,4024.3,0.02484904]
[1758811714677,0.001,4024.7,4024.4,0.124]
[1758811714859,0.001,4024.7,4024.5,0.0248478]
[1758811715059,0.001,4024.7,4024.5,0.2567478]
[1758811715264,0.001,4024.7,4024.6,0.6931]
[1758811715447,0.001,4024.7,4024.6,0.8171]
[1758811715647,0.001,4024.7,4024.6,0.3559]
[1758811715860,0.001,4024.7,4024.6,0.8171]
[1758811718149,0.001,4024.7,4024.6,0.3559]
[1758811718569,0.4312,4024.7,4024.6,3.258]
[1758811718880,0.001,4024.7,4024.6,3.258]
[1758811721084,19.662824,4024.7,4023.3,0.2449]
[1758811721389,2.19782716,4024.6,4023.4,2.9254]
[1758811721565,0.001,4024.7,4023.5,0.7013]
[1758811721745,0.001,4024.7,4023.4,2.4938546]
[1758811721746,0.001,4024.7,4023.6,0.72615336]
[1758811721945,0.001,4024.7,4023.6,0.7013]
[1758811722167,0.23167113,4024.6,4023.7,0.56193]
[1758811722360,0.001,4024.7,4023.8,0.2449]
[1758811722560,0.23166974,4024.6,4023.9,4.582]
[1758811722765,0.001,4024.7,4024.0,0.7013]
[1758811723290,0.001,4024.7,4024.1,0.2449]
[1758811723587,0.001,4024.7,4024.1,0.77323]
[1758811723788,2.764887,4024.6,4021.9,0.002]
[1758811723995,3.0,4023.9,4022.0,0.2449]
[1758811724300,3.0,4023.9,4021.9,2.073]
[1758811724301,3.0,4023.7,4022.1,1.834]
[1758811724595,3.97824707,4023.6,4022.2,0.02486201]
[1758811724801,0.23183707,4023.5,4022.2,0.26976201]
[1758811725086,0.93063707,4023.4,4022.3,0.2560162]
[1758811725291,0.23183707,4023.3,4022.3,0.2560162]
[1758811725451,3.0,4023.8,4022.3,0.2560162]
[1758811725452,0.93063707,4023.2,4022.3,4.5950162]
[1758811725655,0.93063707,4023.1,4022.3,6.6660162]
[1758811725864,0.23183707,4023.0,4022.4,0.02486077]
[1758811726064,0.23183707,4022.9,4022.4,0.02486077]
[1758811726361,0.2458,4023.1,4022.4,0.02486077]
[1758811726574,0.453,4023.4,4022.4,0.02486077]
[1758811726575,0.23125336,4023.0,4022.4,0.02486077]
[1758811726781,0.2458,4022.9,4022.4,0.02486077]
[1758811726982,0.2458,4022.9,4022.3,6.6660162]
[1758811728570,0.2458,4022.9,4022.4,6.404]
[1758811728770,0.6988,4022.8,4022.4,6.404]
[1758811728968,0.6988,4022.7,4022.4,6.404]
[1758811729286,0.6988,4022.6,4022.4,6.404]
[1758811729654,3.0,4023.9,4022.4,6.404]
[1758811729904,0.453,4023.1,4022.4,6.404]
[1758811730205,0.2458,4023.0,4022.0,0.2449]
[1758811730355,0.2458,4023.0,4022.5,4.332]
[1758811730561,0.2458,4022.9,4022.5,4.332]
[1758811730992,0.6988,4022.9,4022.0,0.2449]
[1758811731162,0.453,4022.9,4022.4,0.124]
[1758811731372,0.6988,4022.9,4022.4,0.124]
[1758811731575,0.6988,4022.8,4022.4,0.124]
[1758811731770,0.2458,4022.7,4022.4,0.124]
[1758811732116,0.6988,4022.6,4022.3,0.002]
[1758811732591,3.0,4023.7,4022.3,0.002]
[1758811732592,0.6988,4022.5,4022.3,0.002]
[1758811733093,0.6988,4022.4,4022.3,4.358]
[1758811733455,0.8245182,4022.4,4022.3,0.002]
[1758811733660,23.90424316,4022.4,4022.3,0.002]
[1758811733860,29.32609116,4022.4,4022.3,0.002]
[1758811734062,26.87950416,4022.4,4022.3,0.002]
[1758811734579,29.56966516,4022.4,4022.3,0.002]
[1758811734788,27.18853416,4022.4,4022.3,0.002]
[1758811735013,4.824974,4022.4,4022.3,0.002]
[1758811735210,10.80272696,4022.4,4022.3,0.002]
[1758811735582,15.30490496,4022.4,4022.3,0.002]
[1758811735787,9.95404196,4022.4,4022.3,0.002]
[1758811736784,15.07853996,4022.4,4022.3,0.002]
[1758811736985,15.48957096,4022.4,4022.3,0.002]
[1758811737302,17.28153646,4022.4,4022.3,0.002]
[1758811737506,17.46848546,4022.4,4022.3,0.002]
[1758811738091,12.91145246,4022.4,4022.3,0.002]
[1758811738275,12.58037146,4022.4,4022.3,0.002]
[1758811738478,14.24160006,4022.4,4022.3,0.002]
[1758811738724,17.62471706,4022.4,4022.3,0.002]
[1758811739592,23.50781206,4022.4,4022.3,0.002]
[1758811739792,26.45916006,4022.4,4022.3,0.002]
[1758811739986,35.55791206,4022.4,4022.3,0.002]
[1758811740398,28.09203006,4022.4,4022.3,0.002]
[1758811740630,35.55791206,4022.4,4022.3,0.002]
[1758811740826,24.23775706,4022.4,4022.3,0.002]
[1758811740999,35.55791206,4022.4,4022.3,0.002]
[1758811742482,28.89251206,4022.4,4022.3,0.002]
[1758811743085,2.48632521,4022.0,4021.9,0.002]
[1758811743423,26.32579621,4022.0,4021.9,0.002]
[1758811743717,23.6723837,4022.0,4021.9,0.002]
[1758811744286,26.4335417,4022.0,4021.9,0.002]
[1758811745190,34.5258217,4022.0,4021.9,0.002]
[1758811745418,36.72588135,4022.0,4021.9,0.002]
[1758811745612,10.13753535,4022.0,4021.9,0.002]
[1758811745923,8.6221757,4022.0,4021.9,0.002]
[1758811746285,24.9182697,4022.0,4021.9,0.002]
[1758811746490,27.5270577,4022.0,4021.9,0.002]
[1758811747288,34.5258217,4022.0,4021.9,0.002]
[1758811748097,41.5958217,4022.0,4021.9,0.002]